[Event "December 19 Late 2023"]
[Site "https://www.chess.com"]
[Date "2023.12.19"]
[Round "2"]
[White "Korol, Dimitry"]
[Black "Wang, Jalen"]
[Result "1-0"]
[Board "122"]
[TimeControl "180+1"]
[WhiteFideId "14108003"]
[BlackFideId "2078058"]
[WhiteElo "2262"]
[BlackElo "2150"]
[WhiteTeam "UKR"]
[BlackTeam "USA"]
[WhiteClock "0:00:10"]
[BlackClock "0:00:59"]

1. d4 {[%clk 0:03:00]}  d5 {[%clk 0:02:55]} 2. c4 {[%clk 0:03:01]}  e6 {[%clk 0:02:55]} 3. Nc3 {[%clk 0:03:01]}  Nf6 {[%clk 0:02:55]} 4. Bg5 {[%clk 0:03:01]}  Nbd7 {[%clk 0:02:55]} 5. cxd5 {[%clk 0:03:02]}  exd5 {[%clk 0:02:56]} 6. e3 {[%clk 0:03:02]}  Bb4 {[%clk 0:02:56]} 7. Bd3 {[%clk 0:03:02]}  c5 {[%clk 0:02:57]} 8. Nf3 {[%clk 0:03:00]}  Qa5 {[%clk 0:02:57]} 9. Qc2 {[%clk 0:02:59]}  c4 {[%clk 0:02:57]} 10. Bf5 {[%clk 0:02:59]}  O-O {[%clk 0:02:56]} 11. O-O {[%clk 0:02:55]}  Re8 {[%clk 0:02:57]} 12. Nd2 {[%clk 0:02:29]}  Bxc3 {[%clk 0:02:54]} 13. bxc3 {[%clk 0:02:29]}  Qa6 {[%clk 0:02:46]} 14. Rae1 {[%clk 0:02:23]}  Nf8 {[%clk 0:02:45]} 15. Bxc8 {[%clk 0:02:02]}  Raxc8 {[%clk 0:02:46]} 16. f3 {[%clk 0:02:02]}  N6d7 {[%clk 0:02:35]} 17. e4 {[%clk 0:01:59]}  Qg6 {[%clk 0:02:28]} 18. Bh4 {[%clk 0:01:46]}  Ne6 {[%clk 0:02:28]} 19. Bg3 {[%clk 0:01:34]}  Nf6 {[%clk 0:02:26]} 20. Qb1 {[%clk 0:01:29]}  b6 {[%clk 0:02:18]} 21. f4 {[%clk 0:01:13]}  Qh6 {[%clk 0:02:02]} 22. e5 {[%clk 0:01:08]}  Nh5 {[%clk 0:02:00]} 23. Qf5 {[%clk 0:01:01]}  Nxg3 {[%clk 0:01:56]} 24. hxg3 {[%clk 0:01:00]}  Qg6 {[%clk 0:01:56]} 25. Qxg6 {[%clk 0:00:44]}  hxg6 {[%clk 0:01:57]} 26. f5 {[%clk 0:00:44]}  gxf5 {[%clk 0:01:55]} 27. Rxf5 {[%clk 0:00:45]}  b5 {[%clk 0:01:53]} 28. Ref1 {[%clk 0:00:43]}  Re7 {[%clk 0:01:52]} 29. Rb1 {[%clk 0:00:39]}  Rb7 {[%clk 0:01:51]} 30. a3 {[%clk 0:00:33]}  a5 {[%clk 0:01:51]} 31. Rf2 {[%clk 0:00:25]}  b4 {[%clk 0:01:49]} 32. axb4 {[%clk 0:00:24]}  axb4 {[%clk 0:01:50]} 33. cxb4 {[%clk 0:00:24]}  Nxd4 {[%clk 0:01:48]} 34. Nf3 {[%clk 0:00:18]}  Nxf3+ {[%clk 0:01:49]} 35. gxf3 {[%clk 0:00:19]}  c3 {[%clk 0:01:48]} 36. Kf1 {[%clk 0:00:15]}  d4 {[%clk 0:01:40]} 37. Ke2 {[%clk 0:00:16]}  Rc4 {[%clk 0:01:40]} 38. Kd3 {[%clk 0:00:16]}  Rcxb4 {[%clk 0:01:40]} 39. Rxb4 {[%clk 0:00:15]}  Rxb4 {[%clk 0:01:41]} 40. f4 {[%clk 0:00:15]}  g6 {[%clk 0:01:41]} 41. g4 {[%clk 0:00:15]}  Kf8 {[%clk 0:01:40]} 42. f5 {[%clk 0:00:15]}  Ke7 {[%clk 0:01:37]} 43. Re2 {[%clk 0:00:15]}  gxf5 {[%clk 0:01:27]} 44. gxf5 {[%clk 0:00:16]}  f6 {[%clk 0:01:17]} 45. e6 {[%clk 0:00:15]}  Ra4 {[%clk 0:01:12]} 46. Rg2 {[%clk 0:00:14]}  Ra5 {[%clk 0:01:10]} 47. Rg7+ {[%clk 0:00:13]}  Ke8 {[%clk 0:01:09]} 48. Rg8+ {[%clk 0:00:12]}  Ke7 {[%clk 0:01:09]} 49. Rg7+ {[%clk 0:00:13]}  Kd8 {[%clk 0:01:06]} 50. Rg8+ {[%clk 0:00:11]}  Kc7 {[%clk 0:01:07]} 51. e7 {[%clk 0:00:11]}  c2 {[%clk 0:01:02]} 52. Kxc2 {[%clk 0:00:10]}  Rxf5 {[%clk 0:01:00]} 53. e8=Q {[%clk 0:00:10]}  Rd5 {[%clk 0:00:59]} 54. Kd3 {[%clk 0:00:10]}  Rd7 {[%clk 0:00:59]} 55. Qc8+ {[%clk 0:00:10]}  Kd6 {[%clk 0:00:59]} 56. Rd8 {[%clk 0:00:10]} 1-0

[Event "December 19 Late 2023"]
[Site "https://www.chess.com"]
[Date "2023.12.19"]
[Round "2"]
[White "Titus, Andrew"]
[Black "Nielsen, Viktor Haarmark"]
[Result "1-0"]
[Board "124"]
[TimeControl "180+1"]
[WhiteFideId "2059770"]
[BlackFideId "1444492"]
[WhiteElo "2061"]
[BlackElo "2315"]
[WhiteTeam "USA"]
[BlackTeam "DEN"]
[WhiteClock "0:00:03"]
[BlackClock "0:00:03"]

1. e4 {[%clk 0:02:47]}  e5 {[%clk 0:02:48]} 2. Nf3 {[%clk 0:02:45]}  Nc6 {[%clk 0:02:48]} 3. Bb5 {[%clk 0:02:44]}  a6 {[%clk 0:02:48]} 4. Ba4 {[%clk 0:02:44]}  Nf6 {[%clk 0:02:49]} 5. O-O {[%clk 0:02:42]}  Be7 {[%clk 0:02:49]} 6. d3 {[%clk 0:02:37]}  d6 {[%clk 0:02:44]} 7. c4 {[%clk 0:02:34]}  O-O {[%clk 0:02:43]} 8. h3 {[%clk 0:02:27]}  h6 {[%clk 0:02:32]} 9. Nc3 {[%clk 0:02:22]}  Bd7 {[%clk 0:02:25]} 10. Be3 {[%clk 0:02:08]}  Re8 {[%clk 0:02:23]} 11. a3 {[%clk 0:01:32]}  Bf8 {[%clk 0:02:21]} 12. b4 {[%clk 0:01:32]}  Ne7 {[%clk 0:02:20]} 13. Bc2 {[%clk 0:01:27]}  Ng6 {[%clk 0:02:20]} 14. d4 {[%clk 0:01:24]}  exd4 {[%clk 0:02:18]} 15. Nxd4 {[%clk 0:01:21]}  c6 {[%clk 0:02:12]} 16. f4 {[%clk 0:01:18]}  d5 {[%clk 0:02:13]} 17. cxd5 {[%clk 0:01:16]}  Nxd5 {[%clk 0:02:09]} 18. Nxd5 {[%clk 0:01:13]}  cxd5 {[%clk 0:02:04]} 19. e5 {[%clk 0:01:13]}  Nh4 {[%clk 0:02:01]} 20. g3 {[%clk 0:00:57]}  Bxh3 {[%clk 0:01:51]} 21. gxh4 {[%clk 0:00:55]}  Bxf1 {[%clk 0:01:51]} 22. Qxf1 {[%clk 0:00:52]}  Qxh4 {[%clk 0:01:52]} 23. Qf3 {[%clk 0:00:49]}  Rac8 {[%clk 0:01:50]} 24. Bf2 {[%clk 0:00:42]}  Qd8 {[%clk 0:01:46]} 25. Bb3 {[%clk 0:00:37]}  a5 {[%clk 0:01:37]} 26. Bxd5 {[%clk 0:00:18]}  axb4 {[%clk 0:01:33]} 27. axb4 {[%clk 0:00:19]}  Re7 {[%clk 0:01:13]} 28. e6 {[%clk 0:00:14]}  Rc3 {[%clk 0:00:40]} 29. exf7+ {[%clk 0:00:10]}  Kh8 {[%clk 0:00:41]} 30. Qxc3 {[%clk 0:00:08]}  Qxd5 {[%clk 0:00:41]} 31. Ra8 {[%clk 0:00:06]}  Rxf7 {[%clk 0:00:41]} 32. Qc5 {[%clk 0:00:04]}  Qxc5 {[%clk 0:00:34]} 33. bxc5 {[%clk 0:00:05]}  Kh7 {[%clk 0:00:35]} 34. Ne6 {[%clk 0:00:05]}  Be7 {[%clk 0:00:33]} 35. Rb8 {[%clk 0:00:04]}  Bf6 {[%clk 0:00:33]} 36. Rc8 {[%clk 0:00:03]}  Kg6 {[%clk 0:00:15]} 37. Rc7 {[%clk 0:00:03]}  Be7 {[%clk 0:00:14]} 38. Rxb7 {[%clk 0:00:02]}  Kf5 {[%clk 0:00:14]} 39. Nd4+ {[%clk 0:00:02]}  Kxf4 {[%clk 0:00:13]} 40. Nc6 {[%clk 0:00:01]}  g5 {[%clk 0:00:09]} 41. Nxe7 {[%clk 0:00:01]}  Kf3 {[%clk 0:00:08]} 42. c6 {[%clk 0:00:02]}  g4 {[%clk 0:00:09]} 43. Bc5 {[%clk 0:00:02]}  Rf4 {[%clk 0:00:06]} 44. Rb3+ {[%clk 0:00:03]}  Ke4 {[%clk 0:00:03]} 45. Rb4+ {[%clk 0:00:03]} 1-0

[Event "December 19 Late 2023"]
[Site "https://www.chess.com"]
[Date "2023.12.19"]
[Round "2"]
[White "Ward, Ieuan C"]
[Black "Asish Panda"]
[Result "0-1"]
[Board "126"]
[TimeControl "180+1"]
[WhiteFideId "406627"]
[BlackFideId "45012458"]
[WhiteElo "2328"]
[BlackElo "1767"]
[WhiteTeam "ENG"]
[BlackTeam "IND"]
[WhiteClock "0:00:00"]
[BlackClock "0:00:09"]

1. d4 {[%clk 0:02:55]}  d5 {[%clk 0:02:59]} 2. c4 {[%clk 0:02:55]}  e6 {[%clk 0:02:58]} 3. Nc3 {[%clk 0:02:55]}  Nf6 {[%clk 0:02:58]} 4. Bg5 {[%clk 0:02:56]}  Be7 {[%clk 0:02:57]} 5. e3 {[%clk 0:02:57]}  O-O {[%clk 0:02:57]} 6. Nf3 {[%clk 0:02:57]}  Ne4 {[%clk 0:02:56]} 7. Bxe7 {[%clk 0:02:57]}  Qxe7 {[%clk 0:02:56]} 8. cxd5 {[%clk 0:02:56]}  Nxc3 {[%clk 0:02:56]} 9. bxc3 {[%clk 0:02:56]}  exd5 {[%clk 0:02:57]} 10. Bd3 {[%clk 0:02:56]}  c6 {[%clk 0:02:57]} 11. h3 {[%clk 0:02:55]}  Nd7 {[%clk 0:02:57]} 12. O-O {[%clk 0:02:56]}  Nf6 {[%clk 0:02:56]} 13. Rb1 {[%clk 0:02:54]}  h6 {[%clk 0:02:55]} 14. Ne5 {[%clk 0:02:52]}  Ne4 {[%clk 0:02:51]} 15. Qc2 {[%clk 0:02:50]}  f5 {[%clk 0:02:49]} 16. c4 {[%clk 0:02:49]}  Qg5 {[%clk 0:02:37]} 17. f4 {[%clk 0:02:37]}  Qf6 {[%clk 0:02:24]} 18. cxd5 {[%clk 0:02:34]}  cxd5 {[%clk 0:02:24]} 19. Bxe4 {[%clk 0:02:29]}  fxe4 {[%clk 0:02:02]} 20. Qc5 {[%clk 0:02:16]}  Rd8 {[%clk 0:01:50]} 21. Rfc1 {[%clk 0:02:10]}  Qh4 {[%clk 0:01:43]} 22. Qc7 {[%clk 0:02:05]}  Bxh3 {[%clk 0:01:33]} 23. Qf7+ {[%clk 0:02:02]}  Kh7 {[%clk 0:01:30]} 24. Qg6+ {[%clk 0:01:54]}  Kh8 {[%clk 0:01:14]} 25. Nf7+ {[%clk 0:01:27]}  Kg8 {[%clk 0:01:11]} 26. Nxd8 {[%clk 0:01:27]}  Rxd8 {[%clk 0:01:11]} 27. gxh3 {[%clk 0:01:25]}  Qxh3 {[%clk 0:01:10]} 28. Rb3 {[%clk 0:01:15]}  Qf3 {[%clk 0:00:57]} 29. Rc7 {[%clk 0:00:57]}  Qd1+ {[%clk 0:00:49]} 30. Kf2 {[%clk 0:00:25]}  Qd2+ {[%clk 0:00:44]} 31. Kg3 {[%clk 0:00:21]}  Qe1+ {[%clk 0:00:44]} 32. Kg2 {[%clk 0:00:20]}  Qe2+ {[%clk 0:00:43]} 33. Kh3 {[%clk 0:00:19]}  Qf3+ {[%clk 0:00:37]} 34. Qg3 {[%clk 0:00:14]}  Qh5+ {[%clk 0:00:36]} 35. Kg2 {[%clk 0:00:13]}  Qe2+ {[%clk 0:00:36]} 36. Qf2 {[%clk 0:00:13]}  Qg4+ {[%clk 0:00:36]} 37. Kh2 {[%clk 0:00:14]}  Qh5+ {[%clk 0:00:33]} 38. Kg1 {[%clk 0:00:13]}  Rd6 {[%clk 0:00:30]} 39. Kf1 {[%clk 0:00:09]}  Rg6 {[%clk 0:00:27]} 40. Rb1 {[%clk 0:00:07]}  Qh1+ {[%clk 0:00:23]} 41. Ke2 {[%clk 0:00:07]}  Qxb1 {[%clk 0:00:23]} 42. Rc8+ {[%clk 0:00:05]}  Kh7 {[%clk 0:00:22]} 43. f5 {[%clk 0:00:05]}  Qd3+ {[%clk 0:00:21]} 44. Ke1 {[%clk 0:00:04]}  Rb6 {[%clk 0:00:20]} 45. Rc1 {[%clk 0:00:02]}  Rf6 {[%clk 0:00:16]} 46. Qf4 {[%clk 0:00:02]}  Qa3 {[%clk 0:00:14]} 47. Qf2 {[%clk 0:00:02]}  Qa5+ {[%clk 0:00:13]} 48. Kf1 {[%clk 0:00:03]}  Qd8 {[%clk 0:00:11]} 49. Rc5 {[%clk 0:00:02]}  Qd7 {[%clk 0:00:10]} 50. Ke1 {[%clk 0:00:02]}  Rxf5 {[%clk 0:00:10]} 51. Qg3 {[%clk 0:00:03]}  Qf7 {[%clk 0:00:10]} 52. Qg2 {[%clk 0:00:00]}  Rf3 {[%clk 0:00:09]} 0-1

[Event "December 19 Late 2023"]
[Site "https://www.chess.com"]
[Date "2023.12.19"]
[Round "2"]
[White "Wartiovaara, Oliver"]
[Black "Crispin Ferreras, Darvi Abraham"]
[Result "1-0"]
[Board "127"]
[TimeControl "180+1"]
[WhiteFideId "513024"]
[BlackFideId "6402771"]
[WhiteElo "2214"]
[BlackElo "2149"]
[WhiteTeam "FIN"]
[BlackTeam "DOM"]
[WhiteClock "0:00:26"]
[BlackClock "0:00:10"]

1. e4 {[%clk 0:03:00]}  e6 {[%clk 0:02:58]} 2. d4 {[%clk 0:03:00]}  d5 {[%clk 0:02:58]} 3. e5 {[%clk 0:03:00]}  c5 {[%clk 0:02:57]} 4. c3 {[%clk 0:03:00]}  Qb6 {[%clk 0:02:57]} 5. Nf3 {[%clk 0:03:01]}  Bd7 {[%clk 0:02:57]} 6. Bd3 {[%clk 0:02:58]}  Bb5 {[%clk 0:02:55]} 7. dxc5 {[%clk 0:02:58]}  Bxc5 {[%clk 0:02:54]} 8. b4 {[%clk 0:02:58]}  Bf8 {[%clk 0:02:53]} 9. Be3 {[%clk 0:02:38]}  Qa6 {[%clk 0:02:52]} 10. Bxb5+ {[%clk 0:02:37]}  Qxb5 {[%clk 0:02:52]} 11. a4 {[%clk 0:02:36]}  Qd7 {[%clk 0:02:51]} 12. O-O {[%clk 0:02:35]}  Nc6 {[%clk 0:02:51]} 13. Re1 {[%clk 0:02:31]}  Nge7 {[%clk 0:02:51]} 14. a5 {[%clk 0:02:28]}  Nf5 {[%clk 0:02:48]} 15. Bf4 {[%clk 0:02:11]}  h6 {[%clk 0:02:47]} 16. g4 {[%clk 0:02:03]}  Nfe7 {[%clk 0:02:46]} 17. Na3 {[%clk 0:02:03]}  a6 {[%clk 0:02:46]} 18. Bg3 {[%clk 0:01:53]}  g5 {[%clk 0:02:45]} 19. h4 {[%clk 0:01:28]}  gxh4 {[%clk 0:02:44]} 20. Bxh4 {[%clk 0:01:29]}  Ng6 {[%clk 0:02:44]} 21. Bf6 {[%clk 0:01:29]}  Rg8 {[%clk 0:02:43]} 22. Nd4 {[%clk 0:01:25]}  Be7 {[%clk 0:02:39]} 23. b5 {[%clk 0:01:18]}  Nxd4 {[%clk 0:02:35]} 24. Qxd4 {[%clk 0:01:14]}  Bxf6 {[%clk 0:02:25]} 25. exf6 {[%clk 0:01:15]}  Nh4 {[%clk 0:02:25]} 26. Re3 {[%clk 0:01:03]}  h5 {[%clk 0:02:25]} 27. Rg3 {[%clk 0:01:02]}  O-O-O {[%clk 0:02:19]} 28. bxa6 {[%clk 0:01:00]}  bxa6 {[%clk 0:02:16]} 29. Rb1 {[%clk 0:00:55]}  Rxg4 {[%clk 0:02:10]} 30. Qb6 {[%clk 0:00:48]}  Nf3+ {[%clk 0:00:23]} 31. Kg2 {[%clk 0:00:35]}  Rxg3+ {[%clk 0:00:19]} 32. fxg3 {[%clk 0:00:33]}  Ne1+ {[%clk 0:00:17]} 33. Kf1 {[%clk 0:00:27]}  e5 {[%clk 0:00:10]} 34. Qb8# {[%clk 0:00:26]} 1-0

[Event "December 19 Late 2023"]
[Site "https://www.chess.com"]
[Date "2023.12.19"]
[Round "2"]
[White "Prokhorov, Oleksandr"]
[Black "Cattaneo, Marco"]
[Result "1-0"]
[Board "128"]
[TimeControl "180+1"]
[WhiteFideId "14105578"]
[BlackFideId "878332"]
[WhiteElo "1955"]
[BlackElo "2186"]
[WhiteTeam "UKR"]
[BlackTeam "ITA"]
[WhiteClock "0:01:02"]
[BlackClock "0:00:05"]

1. e4 {[%clk 0:03:00]}  g6 {[%clk 0:03:00]} 2. h4 {[%clk 0:03:00]}  h5 {[%clk 0:02:59]} 3. Nf3 {[%clk 0:02:55]}  Bg7 {[%clk 0:02:59]} 4. Bc4 {[%clk 0:02:54]}  c6 {[%clk 0:02:59]} 5. Nc3 {[%clk 0:02:48]}  b5 {[%clk 0:02:58]} 6. Bb3 {[%clk 0:02:48]}  a5 {[%clk 0:02:57]} 7. a4 {[%clk 0:02:48]}  b4 {[%clk 0:02:57]} 8. Ne2 {[%clk 0:02:48]}  d5 {[%clk 0:02:57]} 9. exd5 {[%clk 0:02:46]}  cxd5 {[%clk 0:02:56]} 10. Nf4 {[%clk 0:02:47]}  Nf6 {[%clk 0:02:56]} 11. d4 {[%clk 0:02:39]}  Bg4 {[%clk 0:02:40]} 12. Qd3 {[%clk 0:02:39]}  O-O {[%clk 0:02:37]} 13. Ne5 {[%clk 0:02:38]}  Bf5 {[%clk 0:02:37]} 14. Qe2 {[%clk 0:02:37]}  Qc7 {[%clk 0:02:30]} 15. O-O {[%clk 0:02:33]}  Nc6 {[%clk 0:02:08]} 16. Nf3 {[%clk 0:02:22]}  Bg4 {[%clk 0:02:02]} 17. Be3 {[%clk 0:02:17]}  e6 {[%clk 0:01:59]} 18. Nd3 {[%clk 0:02:16]}  Ne4 {[%clk 0:01:54]} 19. Rac1 {[%clk 0:02:11]}  Rab8 {[%clk 0:01:52]} 20. Bf4 {[%clk 0:02:04]}  Qd8 {[%clk 0:01:35]} 21. Bxb8 {[%clk 0:02:00]}  Nxd4 {[%clk 0:01:35]} 22. Qe3 {[%clk 0:02:01]}  Nf5 {[%clk 0:01:10]} 23. Qf4 {[%clk 0:01:50]}  Bxf3 {[%clk 0:00:34]} 24. Bc7 {[%clk 0:01:42]}  Qxh4 {[%clk 0:00:17]} 25. Qxh4 {[%clk 0:01:39]}  Nxh4 {[%clk 0:00:18]} 26. gxf3 {[%clk 0:01:38]}  Nxf3+ {[%clk 0:00:19]} 27. Kg2 {[%clk 0:01:38]}  Nfd2 {[%clk 0:00:18]} 28. Rfe1 {[%clk 0:01:37]}  Rc8 {[%clk 0:00:18]} 29. Bf4 {[%clk 0:01:35]}  Nc4 {[%clk 0:00:17]} 30. Bxc4 {[%clk 0:01:33]}  dxc4 {[%clk 0:00:17]} 31. Rxe4 {[%clk 0:01:32]}  cxd3 {[%clk 0:00:17]} 32. cxd3 {[%clk 0:01:33]}  Rd8 {[%clk 0:00:17]} 33. Rd1 {[%clk 0:01:29]}  Bxb2 {[%clk 0:00:17]} 34. Be5 {[%clk 0:01:29]}  Ba3 {[%clk 0:00:16]} 35. Rc4 {[%clk 0:01:28]}  b3 {[%clk 0:00:14]} 36. Bf6 {[%clk 0:01:26]}  Rb8 {[%clk 0:00:12]} 37. Rb1 {[%clk 0:01:25]}  Kh7 {[%clk 0:00:12]} 38. Rc7 {[%clk 0:01:21]}  g5 {[%clk 0:00:11]} 39. Bxg5 {[%clk 0:01:19]}  Kg6 {[%clk 0:00:12]} 40. Bc1 {[%clk 0:01:18]}  Bd6 {[%clk 0:00:12]} 41. Rc3 {[%clk 0:01:15]}  h4 {[%clk 0:00:12]} 42. Kh3 {[%clk 0:01:15]}  Rb4 {[%clk 0:00:11]} 43. Rbxb3 {[%clk 0:01:14]}  Rxa4 {[%clk 0:00:11]} 44. Rc4 {[%clk 0:01:12]}  Ra2 {[%clk 0:00:11]} 45. Rg4+ {[%clk 0:01:12]}  Kf5 {[%clk 0:00:09]} 46. Rb5+ {[%clk 0:01:11]}  e5 {[%clk 0:00:09]} 47. Be3 {[%clk 0:01:06]}  Ra1 {[%clk 0:00:09]} 48. Kxh4 {[%clk 0:01:02]}  Rh1+ {[%clk 0:00:08]} 49. Kg3 {[%clk 0:01:02]}  Rg1+ {[%clk 0:00:08]} 50. Kf3 {[%clk 0:01:02]}  Rxg4 {[%clk 0:00:08]} 51. Rxa5 {[%clk 0:01:02]}  Ke6 {[%clk 0:00:05]} 52. Kxg4 {[%clk 0:01:02]} 1-0

[Event "December 19 Late 2023"]
[Site "https://www.chess.com"]
[Date "2023.12.19"]
[Round "2"]
[White "Shapiro, Daniel"]
[Black "D`Arruda, Ricardo D."]
[Result "0-1"]
[Board "131"]
[TimeControl "180+1"]
[WhiteFideId "2001780"]
[BlackFideId "100692"]
[WhiteElo "2298"]
[BlackElo "2529"]
[WhiteTeam "USA"]
[BlackTeam "ARG"]
[WhiteClock "0:00:00"]
[BlackClock "0:00:45"]

1. d4 {[%clk 0:03:00]}  Nf6 {[%clk 0:02:58]} 2. c4 {[%clk 0:03:00]}  e5 {[%clk 0:02:58]} 3. dxe5 {[%clk 0:02:58]}  Ne4 {[%clk 0:02:58]} 4. a3 {[%clk 0:02:51]}  Nc6 {[%clk 0:02:58]} 5. Qc2 {[%clk 0:02:49]}  d5 {[%clk 0:02:58]} 6. Nd2 {[%clk 0:02:37]}  Nxd2 {[%clk 0:02:53]} 7. Bxd2 {[%clk 0:02:35]}  Nxe5 {[%clk 0:02:51]} 8. cxd5 {[%clk 0:02:33]}  Qxd5 {[%clk 0:02:49]} 9. O-O-O {[%clk 0:02:26]}  Qa2 {[%clk 0:02:28]} 10. e4 {[%clk 0:01:54]}  Qa1+ {[%clk 0:02:25]} 11. Qb1 {[%clk 0:01:54]}  Qxb1+ {[%clk 0:02:26]} 12. Kxb1 {[%clk 0:01:54]}  Bc5 {[%clk 0:02:13]} 13. Bf4 {[%clk 0:01:31]}  f6 {[%clk 0:02:09]} 14. f3 {[%clk 0:01:28]}  Be6 {[%clk 0:02:08]} 15. Bb5+ {[%clk 0:01:17]}  Kf7 {[%clk 0:02:06]} 16. Ne2 {[%clk 0:01:15]}  Rhd8 {[%clk 0:02:01]} 17. Ba4 {[%clk 0:01:13]}  Nd3 {[%clk 0:01:55]} 18. Bxc7 {[%clk 0:01:03]}  Rdc8 {[%clk 0:01:42]} 19. Rxd3 {[%clk 0:01:01]}  Rxc7 {[%clk 0:01:43]} 20. Rc1 {[%clk 0:00:56]}  Rac8 {[%clk 0:01:36]} 21. Rdc3 {[%clk 0:00:51]}  Bd6 {[%clk 0:01:31]} 22. Rxc7+ {[%clk 0:00:51]}  Rxc7 {[%clk 0:01:32]} 23. Rxc7+ {[%clk 0:00:51]}  Bxc7 {[%clk 0:01:33]} 24. Nd4 {[%clk 0:00:50]}  Bxh2 {[%clk 0:01:29]} 25. Nxe6 {[%clk 0:00:41]}  Kxe6 {[%clk 0:01:30]} 26. Kc2 {[%clk 0:00:37]}  Ke5 {[%clk 0:01:29]} 27. Kd3 {[%clk 0:00:35]}  Kf4 {[%clk 0:01:29]} 28. Ke2 {[%clk 0:00:35]}  Kg3 {[%clk 0:01:28]} 29. Kf1 {[%clk 0:00:35]}  Kf4 {[%clk 0:01:27]} 30. Ke2 {[%clk 0:00:34]}  Bg1 {[%clk 0:01:26]} 31. Bb3 {[%clk 0:00:30]}  Bd4 {[%clk 0:01:22]} 32. Bd5 {[%clk 0:00:30]}  Bxb2 {[%clk 0:01:21]} 33. Bxb7 {[%clk 0:00:30]}  Bxa3 {[%clk 0:01:21]} 34. Ba6 {[%clk 0:00:29]}  Kg3 {[%clk 0:01:20]} 35. Kf1 {[%clk 0:00:29]}  h5 {[%clk 0:01:19]} 36. Bb5 {[%clk 0:00:26]}  g5 {[%clk 0:01:15]} 37. Bd7 {[%clk 0:00:26]}  a5 {[%clk 0:01:14]} 38. Bc6 {[%clk 0:00:24]}  Bc5 {[%clk 0:01:13]} 39. Bd7 {[%clk 0:00:23]}  Bd4 {[%clk 0:01:10]} 40. Be8 {[%clk 0:00:22]}  Kh4 {[%clk 0:01:07]} 41. Ke2 {[%clk 0:00:19]}  Be5 {[%clk 0:00:57]} 42. Bd7 {[%clk 0:00:17]}  Kg3 {[%clk 0:00:56]} 43. Be8 {[%clk 0:00:16]}  h4 {[%clk 0:00:46]} 44. Bd7 {[%clk 0:00:16]}  Kxg2 {[%clk 0:00:46]} 45. Bg4 {[%clk 0:00:00]}  h3 {[%clk 0:00:45]} 0-1

[Event "December 19 Late 2023"]
[Site "https://www.chess.com"]
[Date "2023.12.19"]
[Round "2"]
[White "Hasanagic, Anel"]
[Black "Gao, Raymond"]
[Result "0-1"]
[Board "132"]
[TimeControl "180+1"]
[WhiteFideId "14605791"]
[BlackFideId "2629429"]
[WhiteElo "2209"]
[BlackElo "1953"]
[WhiteTeam "SLO"]
[BlackTeam "CAN"]
[WhiteClock "0:00:00"]
[BlackClock "0:01:52"]

1. Nf3 {[%clk 0:02:45]}  Nf6 {[%clk 0:02:59]} 2. b3 {[%clk 0:02:37]}  g6 {[%clk 0:02:57]} 3. Bb2 {[%clk 0:02:38]}  Bg7 {[%clk 0:02:58]} 4. d3 {[%clk 0:02:07]}  O-O {[%clk 0:02:58]} 5. g3 {[%clk 0:02:07]}  d6 {[%clk 0:02:58]} 6. Bg2 {[%clk 0:02:08]}  e5 {[%clk 0:02:59]} 7. O-O {[%clk 0:02:08]}  a5 {[%clk 0:02:58]} 8. a4 {[%clk 0:02:07]}  Nc6 {[%clk 0:02:59]} 9. Nc3 {[%clk 0:02:07]}  Bg4 {[%clk 0:02:58]} 10. h3 {[%clk 0:02:07]}  Bf5 {[%clk 0:02:56]} 11. e4 {[%clk 0:02:07]}  Be6 {[%clk 0:02:56]} 12. Ng5 {[%clk 0:02:07]}  Bd7 {[%clk 0:02:56]} 13. f4 {[%clk 0:02:07]}  Qc8 {[%clk 0:02:54]} 14. Kh2 {[%clk 0:01:58]}  h6 {[%clk 0:02:49]} 15. Nf3 {[%clk 0:01:35]}  Nb4 {[%clk 0:02:43]} 16. Ne2 {[%clk 0:01:26]}  exf4 {[%clk 0:02:36]} 17. gxf4 {[%clk 0:01:27]}  d5 {[%clk 0:02:36]} 18. e5 {[%clk 0:01:24]}  Nh5 {[%clk 0:02:36]} 19. c3 {[%clk 0:01:21]}  Na6 {[%clk 0:02:35]} 20. Nd2 {[%clk 0:01:11]}  Bf5 {[%clk 0:02:33]} 21. Rf3 {[%clk 0:00:46]}  Nc5 {[%clk 0:02:31]} 22. Nf1 {[%clk 0:00:39]}  c6 {[%clk 0:02:21]} 23. Nfg3 {[%clk 0:00:36]}  Nxg3 {[%clk 0:02:20]} 24. Nxg3 {[%clk 0:00:37]}  Re8 {[%clk 0:02:13]} 25. Ba3 {[%clk 0:00:25]}  b6 {[%clk 0:02:11]} 26. Nxf5 {[%clk 0:00:23]}  Qxf5 {[%clk 0:02:11]} 27. d4 {[%clk 0:00:21]}  Ne4 {[%clk 0:02:10]} 28. Rc1 {[%clk 0:00:19]}  h5 {[%clk 0:02:07]} 29. Qe1 {[%clk 0:00:18]}  Bh6 {[%clk 0:02:05]} 30. Qe3 {[%clk 0:00:17]}  c5 {[%clk 0:02:04]} 31. Rcf1 {[%clk 0:00:11]}  Rac8 {[%clk 0:02:03]} 32. dxc5 {[%clk 0:00:06]}  bxc5 {[%clk 0:01:58]} 33. Qd3 {[%clk 0:00:00]}  Red8 {[%clk 0:01:52]} 0-1

[Event "December 19 Late 2023"]
[Site "https://www.chess.com"]
[Date "2023.12.19"]
[Round "2"]
[White "Molenda, Marcin"]
[Black "Khokhlova, Daria"]
[Result "1-0"]
[Board "134"]
[TimeControl "180+1"]
[WhiteFideId "1173065"]
[BlackFideId "24182729"]
[WhiteElo "2286"]
[BlackElo "2032"]
[WhiteTeam "POL"]
[BlackTeam "FID"]
[WhiteClock "0:01:55"]
[BlackClock "0:01:19"]

1. Nf3 {[%clk 0:03:00]}  c5 {[%clk 0:02:59]} 2. c4 {[%clk 0:02:59]}  Nc6 {[%clk 0:02:59]} 3. Nc3 {[%clk 0:03:00]}  e6 {[%clk 0:02:59]} 4. d4 {[%clk 0:03:00]}  cxd4 {[%clk 0:02:59]} 5. Nxd4 {[%clk 0:03:01]}  Nf6 {[%clk 0:02:59]} 6. g3 {[%clk 0:03:00]}  Bb4 {[%clk 0:02:59]} 7. Bg2 {[%clk 0:02:58]}  O-O {[%clk 0:02:56]} 8. O-O {[%clk 0:02:57]}  Bxc3 {[%clk 0:02:53]} 9. bxc3 {[%clk 0:02:57]}  d6 {[%clk 0:02:51]} 10. Nxc6 {[%clk 0:02:55]}  bxc6 {[%clk 0:02:51]} 11. Bxc6 {[%clk 0:02:56]}  Rb8 {[%clk 0:02:51]} 12. Ba3 {[%clk 0:02:46]}  Rb6 {[%clk 0:02:50]} 13. Bg2 {[%clk 0:02:45]}  Qc7 {[%clk 0:02:49]} 14. Rb1 {[%clk 0:02:41]}  Rd8 {[%clk 0:02:48]} 15. Rxb6 {[%clk 0:02:40]}  Qxb6 {[%clk 0:02:37]} 16. Qb3 {[%clk 0:02:39]}  Ba6 {[%clk 0:02:34]} 17. Rd1 {[%clk 0:02:34]}  Qc7 {[%clk 0:02:29]} 18. Qb4 {[%clk 0:02:28]}  Ne8 {[%clk 0:02:21]} 19. c5 {[%clk 0:02:17]}  dxc5 {[%clk 0:02:13]} 20. Rxd8 {[%clk 0:02:17]}  Qxd8 {[%clk 0:02:13]} 21. Qxc5 {[%clk 0:02:17]}  h6 {[%clk 0:01:59]} 22. Bf3 {[%clk 0:02:13]}  Nc7 {[%clk 0:01:47]} 23. Qxa7 {[%clk 0:02:09]}  Bc4 {[%clk 0:01:44]} 24. Bc5 {[%clk 0:01:57]}  Qd1+ {[%clk 0:01:39]} 25. Kg2 {[%clk 0:01:57]}  Nb5 {[%clk 0:01:36]} 26. Qa8+ {[%clk 0:01:55]}  Kh7 {[%clk 0:01:19]} 27. Qe4+ {[%clk 0:01:55]} 1-0